[Event "December 19 Early 2023"]
[Site "https://www.chess.com"]
[Date "2023.12.19"]
[Round "9"]
[White "Zemlyanskii, Ivan"]
[Black "Sadovsky, Artem"]
[Result "1-0"]
[Board "79"]
[TimeControl "180+1"]
[WhiteFideId "24249971"]
[BlackFideId "4155840"]
[WhiteElo "2418"]
[BlackElo "2314"]
[WhiteTeam "RUS"]
[BlackTeam "FID"]
[WhiteClock "0:00:50"]
[BlackClock "0:00:19"]

1. d4 {[%clk 0:03:00]}  g6 {[%clk 0:02:56]} 2. c4 {[%clk 0:03:00]}  Bg7 {[%clk 0:02:55]} 3. e4 {[%clk 0:03:00]}  d6 {[%clk 0:02:56]} 4. Nc3 {[%clk 0:02:59]}  e5 {[%clk 0:02:51]} 5. Nf3 {[%clk 0:02:56]}  Nc6 {[%clk 0:02:34]} 6. dxe5 {[%clk 0:02:52]}  dxe5 {[%clk 0:02:28]} 7. Qxd8+ {[%clk 0:02:47]}  Nxd8 {[%clk 0:02:28]} 8. Nd5 {[%clk 0:02:41]}  Ne6 {[%clk 0:02:13]} 9. Ng5 {[%clk 0:02:41]}  Nxg5 {[%clk 0:01:49]} 10. Nxc7+ {[%clk 0:02:05]}  Kd7 {[%clk 0:01:49]} 11. Nxa8 {[%clk 0:02:05]}  Ne6 {[%clk 0:01:49]} 12. Be3 {[%clk 0:01:48]}  b6 {[%clk 0:01:32]} 13. c5 {[%clk 0:01:42]}  bxc5 {[%clk 0:01:06]} 14. Bb5+ {[%clk 0:01:37]}  Kd6 {[%clk 0:01:06]} 15. b4 {[%clk 0:01:19]}  Nd4 {[%clk 0:00:58]} 16. bxc5+ {[%clk 0:01:15]}  Kxc5 {[%clk 0:00:59]} 17. Rc1+ {[%clk 0:01:12]}  Kxb5 {[%clk 0:00:59]} 18. Rxc8 {[%clk 0:01:13]}  Ne7 {[%clk 0:00:55]} 19. Rxh8 {[%clk 0:01:03]}  Bxh8 {[%clk 0:00:56]} 20. Nc7+ {[%clk 0:01:02]}  Kc6 {[%clk 0:00:50]} 21. Bxd4 {[%clk 0:01:02]}  exd4 {[%clk 0:00:49]} 22. Nd5 {[%clk 0:01:03]}  Nxd5 {[%clk 0:00:49]} 23. exd5+ {[%clk 0:01:03]}  Kxd5 {[%clk 0:00:49]} 24. Kd2 {[%clk 0:01:03]}  Bf6 {[%clk 0:00:41]} 25. Kd3 {[%clk 0:01:04]}  a5 {[%clk 0:00:34]} 26. Rb1 {[%clk 0:01:02]}  Kc6 {[%clk 0:00:34]} 27. Kc4 {[%clk 0:00:58]}  Be5 {[%clk 0:00:22]} 28. g3 {[%clk 0:00:56]}  f5 {[%clk 0:00:20]} 29. Rb5 {[%clk 0:00:55]}  Bc7 {[%clk 0:00:20]} 30. Rc5+ {[%clk 0:00:52]}  Kb6 {[%clk 0:00:19]} 31. Kxd4 {[%clk 0:00:50]} 1-0

[Event "December 19 Early 2023"]
[Site "https://www.chess.com"]
[Date "2023.12.19"]
[Round "9"]
[White "Kochiev, Ivan"]
[Black "Klukin, Kirill"]
[Result "1-0"]
[Board "80"]
[TimeControl "180+1"]
[WhiteFideId "2917890"]
[BlackFideId "24199273"]
[WhiteElo "2285"]
[BlackElo "2348"]
[WhiteTeam "BUL"]
[BlackTeam "RUS"]
[WhiteClock "0:01:08"]
[BlackClock "0:00:09"]

1. e4 {[%clk 0:03:00]}  c5 {[%clk 0:02:59]} 2. Nf3 {[%clk 0:02:58]}  g6 {[%clk 0:03:00]} 3. d4 {[%clk 0:02:58]}  cxd4 {[%clk 0:03:01]} 4. Nxd4 {[%clk 0:02:59]}  Bg7 {[%clk 0:03:01]} 5. c4 {[%clk 0:02:58]}  Nc6 {[%clk 0:03:02]} 6. Be3 {[%clk 0:02:56]}  Nf6 {[%clk 0:03:02]} 7. Nc3 {[%clk 0:02:55]}  O-O {[%clk 0:03:03]} 8. Be2 {[%clk 0:02:55]}  d6 {[%clk 0:03:03]} 9. Nc2 {[%clk 0:02:55]}  Be6 {[%clk 0:03:01]} 10. O-O {[%clk 0:02:53]}  Rc8 {[%clk 0:03:01]} 11. Qd2 {[%clk 0:02:53]}  a6 {[%clk 0:03:02]} 12. Rac1 {[%clk 0:02:53]}  Ne5 {[%clk 0:02:40]} 13. b3 {[%clk 0:02:51]}  b5 {[%clk 0:01:51]} 14. cxb5 {[%clk 0:02:38]}  axb5 {[%clk 0:01:49]} 15. Bxb5 {[%clk 0:02:20]}  Qa5 {[%clk 0:01:46]} 16. Nd4 {[%clk 0:02:05]}  Nfg4 {[%clk 0:01:08]} 17. Nd5 {[%clk 0:01:51]}  Qd8 {[%clk 0:00:35]} 18. Nxe6 {[%clk 0:01:46]}  Rxc1 {[%clk 0:00:16]} 19. Nxd8 {[%clk 0:01:42]}  Rxf1+ {[%clk 0:00:17]} 20. Kxf1 {[%clk 0:01:27]}  Nxh2+ {[%clk 0:00:15]} 21. Ke2 {[%clk 0:01:23]}  Rxd8 {[%clk 0:00:14]} 22. Nxe7+ {[%clk 0:01:22]}  Kf8 {[%clk 0:00:15]} 23. Nc6 {[%clk 0:01:15]}  Nxc6 {[%clk 0:00:13]} 24. Bxc6 {[%clk 0:01:14]}  Ng4 {[%clk 0:00:09]} 25. Bb6 {[%clk 0:01:08]} 1-0

[Event "December 19 Early 2023"]
[Site "https://www.chess.com"]
[Date "2023.12.19"]
[Round "9"]
[White "Sreyas Payyappat"]
[Black "Chan, Yi Ren Daniel"]
[Result "0-1"]
[Board "81"]
[TimeControl "180+1"]
[WhiteFideId "46674969"]
[BlackFideId "5801583"]
[WhiteElo "2043"]
[BlackElo "2375"]
[WhiteTeam "IND"]
[BlackTeam "SGP"]
[WhiteClock "0:00:01"]
[BlackClock "0:00:58"]

1. e4 {[%clk 0:03:00]}  e5 {[%clk 0:02:56]} 2. Nf3 {[%clk 0:02:58]}  Nc6 {[%clk 0:02:57]} 3. Bc4 {[%clk 0:02:45]}  Nf6 {[%clk 0:02:57]} 4. d4 {[%clk 0:02:30]}  exd4 {[%clk 0:02:57]} 5. e5 {[%clk 0:02:29]}  d5 {[%clk 0:02:57]} 6. Bb5 {[%clk 0:02:28]}  Ne4 {[%clk 0:02:57]} 7. Nxd4 {[%clk 0:02:25]}  Bc5 {[%clk 0:02:57]} 8. Be3 {[%clk 0:02:13]}  O-O {[%clk 0:02:56]} 9. Nxc6 {[%clk 0:02:12]}  bxc6 {[%clk 0:02:56]} 10. Bxc5 {[%clk 0:02:12]}  Nxc5 {[%clk 0:02:54]} 11. Bxc6 {[%clk 0:02:13]}  Ba6 {[%clk 0:02:55]} 12. Bxa8 {[%clk 0:02:08]}  Qg5 {[%clk 0:02:15]} 13. Qd2 {[%clk 0:00:55]}  Qxe5+ {[%clk 0:02:10]} 14. Kd1 {[%clk 0:00:54]}  Rxa8 {[%clk 0:02:04]} 15. Nc3 {[%clk 0:00:52]}  d4 {[%clk 0:01:57]} 16. Re1 {[%clk 0:00:28]}  Qh5+ {[%clk 0:01:48]} 17. Ne2 {[%clk 0:00:26]}  Rd8 {[%clk 0:01:34]} 18. f3 {[%clk 0:00:20]}  d3 {[%clk 0:01:34]} 19. Kc1 {[%clk 0:00:16]}  Qh4 {[%clk 0:01:28]} 20. Nf4 {[%clk 0:00:15]}  dxc2 {[%clk 0:01:24]} 21. g3 {[%clk 0:00:11]}  Qf6 {[%clk 0:01:20]} 22. Nd5 {[%clk 0:00:11]}  Qd6 {[%clk 0:01:10]} 23. Ne7+ {[%clk 0:00:02]}  Kf8 {[%clk 0:01:10]} 24. Qxd6 {[%clk 0:00:02]}  Rxd6 {[%clk 0:01:10]} 25. Kxc2 {[%clk 0:00:03]}  g6 {[%clk 0:01:05]} 26. Re3 {[%clk 0:00:02]}  Ne6 {[%clk 0:01:02]} 27. Nc8 {[%clk 0:00:02]}  Bxc8 {[%clk 0:01:02]} 28. Rd1 {[%clk 0:00:02]}  Nd4+ {[%clk 0:00:59]} 29. Kc1 {[%clk 0:00:02]}  c5 {[%clk 0:00:59]} 30. Red3 {[%clk 0:00:02]}  Bf5 {[%clk 0:00:58]} 31. Re3 {[%clk 0:00:02]}  Ra6 {[%clk 0:00:55]} 32. g4 {[%clk 0:00:02]}  Be6 {[%clk 0:00:55]} 33. a3 {[%clk 0:00:02]}  Rb6 {[%clk 0:00:56]} 34. Rc3 {[%clk 0:00:02]}  Ne2+ {[%clk 0:00:56]} 35. Kc2 {[%clk 0:00:01]}  Nxc3 {[%clk 0:00:57]} 36. Kxc3 {[%clk 0:00:02]}  Rb3+ {[%clk 0:00:57]} 37. Kc2 {[%clk 0:00:01]}  Rxf3 {[%clk 0:00:58]} 0-1

[Event "December 19 Early 2023"]
[Site "https://www.chess.com"]
[Date "2023.12.19"]
[Round "9"]
[White "Weetik, Vjacheslav"]
[Black "Namitbir Singh Walia"]
[Result "0-1"]
[Board "82"]
[TimeControl "180+1"]
[WhiteFideId "4153472"]
[BlackFideId "35071068"]
[WhiteElo "2469"]
[BlackElo "2239"]
[WhiteTeam "RUS"]
[BlackTeam "IND"]
[WhiteClock "0:00:50"]
[BlackClock "0:00:06"]

1. e4 {[%clk 0:02:58]}  c6 {[%clk 0:03:00]} 2. d4 {[%clk 0:02:58]}  d5 {[%clk 0:03:01]} 3. exd5 {[%clk 0:02:59]}  cxd5 {[%clk 0:03:01]} 4. Bd3 {[%clk 0:02:59]}  Nc6 {[%clk 0:03:01]} 5. c3 {[%clk 0:03:00]}  Nf6 {[%clk 0:03:01]} 6. Bf4 {[%clk 0:03:00]}  Bg4 {[%clk 0:02:59]} 7. Qb3 {[%clk 0:02:59]}  Qd7 {[%clk 0:02:16]} 8. Nd2 {[%clk 0:02:58]}  e6 {[%clk 0:02:15]} 9. Ngf3 {[%clk 0:02:58]}  Bd6 {[%clk 0:02:14]} 10. Bg5 {[%clk 0:02:54]}  h6 {[%clk 0:02:09]} 11. Bh4 {[%clk 0:02:54]}  Nh5 {[%clk 0:01:44]} 12. Bg3 {[%clk 0:02:37]}  Nxg3 {[%clk 0:01:43]} 13. hxg3 {[%clk 0:02:30]}  O-O {[%clk 0:01:39]} 14. Rh4 {[%clk 0:02:21]}  e5 {[%clk 0:01:05]} 15. dxe5 {[%clk 0:02:15]}  Nxe5 {[%clk 0:01:05]} 16. Nxe5 {[%clk 0:02:13]}  Bxe5 {[%clk 0:01:05]} 17. Nf3 {[%clk 0:02:09]}  Bf6 {[%clk 0:00:55]} 18. Rh1 {[%clk 0:02:06]}  Rfe8+ {[%clk 0:00:53]} 19. Kf1 {[%clk 0:02:07]}  a6 {[%clk 0:00:43]} 20. Rd1 {[%clk 0:01:58]}  Rad8 {[%clk 0:00:43]} 21. Bb1 {[%clk 0:01:58]}  Qe6 {[%clk 0:00:20]} 22. Qc2 {[%clk 0:01:54]}  Bf5 {[%clk 0:00:20]} 23. Qxf5 {[%clk 0:01:37]}  Qe2+ {[%clk 0:00:19]} 24. Kg1 {[%clk 0:01:37]}  Qxd1+ {[%clk 0:00:20]} 25. Kh2 {[%clk 0:01:38]}  Qe2 {[%clk 0:00:21]} 26. Qh7+ {[%clk 0:01:37]}  Kf8 {[%clk 0:00:21]} 27. Re1 {[%clk 0:01:27]}  Qxe1 {[%clk 0:00:18]} 28. Nxe1 {[%clk 0:01:28]}  Rxe1 {[%clk 0:00:18]} 29. Bf5 {[%clk 0:01:23]}  Re2 {[%clk 0:00:14]} 30. f4 {[%clk 0:01:18]}  Rxb2 {[%clk 0:00:13]} 31. Bg4 {[%clk 0:01:14]}  Bxc3 {[%clk 0:00:10]} 32. Qd3 {[%clk 0:01:09]}  Bf6 {[%clk 0:00:10]} 33. a4 {[%clk 0:01:02]}  b5 {[%clk 0:00:10]} 34. a5 {[%clk 0:01:02]}  Kg8 {[%clk 0:00:07]} 35. Bf3 {[%clk 0:01:00]}  d4 {[%clk 0:00:07]} 36. Qf5 {[%clk 0:01:01]}  d3 {[%clk 0:00:06]} 37. Bd1 {[%clk 0:01:00]}  d2 {[%clk 0:00:06]} 38. Qc5 {[%clk 0:00:58]}  Re8 {[%clk 0:00:06]} 39. Qc6 {[%clk 0:00:55]}  Re1 {[%clk 0:00:06]} 40. Bc2 {[%clk 0:00:56]}  Rxc2 {[%clk 0:00:05]} 41. Qxc2 {[%clk 0:00:51]}  d1=Q {[%clk 0:00:06]} 42. Qc8+ {[%clk 0:00:52]}  Kh7 {[%clk 0:00:05]} 43. Qf5+ {[%clk 0:00:50]}  g6 {[%clk 0:00:06]} 0-1

[Event "December 19 Early 2023"]
[Site "https://www.chess.com"]
[Date "2023.12.19"]
[Round "9"]
[White "Tokhirjonova, Gulrukhbegim"]
[Black "Bowden, Karl"]
[Result "1-0"]
[Board "86"]
[TimeControl "180+1"]
[WhiteFideId "14203626"]
[BlackFideId "400548"]
[WhiteElo "2265"]
[BlackElo "2444"]
[WhiteTeam "USA"]
[BlackTeam "ENG"]
[WhiteClock "0:00:04"]
[BlackClock "0:00:00"]

1. Nf3 {[%clk 0:02:54]}  Nf6 {[%clk 0:02:59]} 2. Nc3 {[%clk 0:02:53]}  d5 {[%clk 0:02:53]} 3. d4 {[%clk 0:02:53]}  g6 {[%clk 0:02:51]} 4. Bf4 {[%clk 0:02:52]}  Bg7 {[%clk 0:02:52]} 5. Qd2 {[%clk 0:02:52]}  c6 {[%clk 0:02:52]} 6. Bh6 {[%clk 0:02:52]}  Bxh6 {[%clk 0:02:51]} 7. Qxh6 {[%clk 0:02:52]}  b5 {[%clk 0:02:51]} 8. h3 {[%clk 0:02:49]}  b4 {[%clk 0:02:49]} 9. Na4 {[%clk 0:02:49]}  Bf5 {[%clk 0:02:38]} 10. O-O-O {[%clk 0:02:39]}  Ne4 {[%clk 0:02:27]} 11. Qe3 {[%clk 0:02:35]}  Qa5 {[%clk 0:02:22]} 12. b3 {[%clk 0:02:30]}  Nd7 {[%clk 0:02:14]} 13. g4 {[%clk 0:02:26]}  Be6 {[%clk 0:02:13]} 14. Kb2 {[%clk 0:02:25]}  Nb6 {[%clk 0:01:59]} 15. Ng5 {[%clk 0:01:32]}  Nxa4+ {[%clk 0:01:38]} 16. bxa4 {[%clk 0:01:31]}  Nc3 {[%clk 0:01:12]} 17. Ra1 {[%clk 0:01:28]}  Qxa4 {[%clk 0:01:06]} 18. a3 {[%clk 0:01:26]}  Rb8 {[%clk 0:01:04]} 19. Kc1 {[%clk 0:01:22]}  Bd7 {[%clk 0:01:00]} 20. Bg2 {[%clk 0:00:57]}  b3 {[%clk 0:00:44]} 21. Qxc3 {[%clk 0:00:47]}  b2+ {[%clk 0:00:44]} 22. Kd2 {[%clk 0:00:48]}  bxa1=Q {[%clk 0:00:43]} 23. Rxa1 {[%clk 0:00:49]}  O-O {[%clk 0:00:36]} 24. Nf3 {[%clk 0:00:41]}  f5 {[%clk 0:00:20]} 25. Ne5 {[%clk 0:00:40]}  Be6 {[%clk 0:00:19]} 26. Bf3 {[%clk 0:00:37]}  c5 {[%clk 0:00:17]} 27. dxc5 {[%clk 0:00:17]}  Rbc8 {[%clk 0:00:17]} 28. e3 {[%clk 0:00:10]}  Rfd8 {[%clk 0:00:15]} 29. Qd4 {[%clk 0:00:10]}  Qa5+ {[%clk 0:00:14]} 30. Qb4 {[%clk 0:00:10]}  Qxc5 {[%clk 0:00:14]} 31. Qxc5 {[%clk 0:00:10]}  Rxc5 {[%clk 0:00:14]} 32. Nd3 {[%clk 0:00:10]}  Rc7 {[%clk 0:00:13]} 33. c3 {[%clk 0:00:10]}  Rdc8 {[%clk 0:00:13]} 34. Rc1 {[%clk 0:00:11]}  fxg4 {[%clk 0:00:14]} 35. hxg4 {[%clk 0:00:11]}  Rf8 {[%clk 0:00:14]} 36. Ke2 {[%clk 0:00:11]}  Rfc8 {[%clk 0:00:11]} 37. Kd2 {[%clk 0:00:11]}  Kf7 {[%clk 0:00:11]} 38. Nf4 {[%clk 0:00:11]}  Rd7 {[%clk 0:00:09]} 39. g5 {[%clk 0:00:11]}  Bf5 {[%clk 0:00:09]} 40. Rh1 {[%clk 0:00:11]}  Kg7 {[%clk 0:00:08]} 41. Ne2 {[%clk 0:00:09]}  e5 {[%clk 0:00:07]} 42. Bg2 {[%clk 0:00:08]}  Rb8 {[%clk 0:00:06]} 43. Rd1 {[%clk 0:00:07]}  Rb2+ {[%clk 0:00:06]} 44. Ke1 {[%clk 0:00:07]}  e4 {[%clk 0:00:05]} 45. Nd4 {[%clk 0:00:06]}  Bg4 {[%clk 0:00:05]} 46. Rc1 {[%clk 0:00:04]}  Rc7 {[%clk 0:00:04]} 47. f4 {[%clk 0:00:03]}  exf3 {[%clk 0:00:03]} 48. Bxf3 {[%clk 0:00:03]}  Bxf3 {[%clk 0:00:01]} 49. Ne6+ {[%clk 0:00:04]}  Kf7 {[%clk 0:00:01]} 50. Nxc7 {[%clk 0:00:05]}  Re2+ {[%clk 0:00:00]} 51. Kf1 {[%clk 0:00:04]} 1-0

[Event "December 19 Early 2023"]
[Site "https://www.chess.com"]
[Date "2023.12.19"]
[Round "9"]
[White "Melian, Juan Sebastian"]
[Black "Serban, Cristian-Stefan"]
[Result "0-1"]
[Board "87"]
[TimeControl "180+1"]
[WhiteFideId "3706575"]
[BlackFideId "1241443"]
[WhiteElo "2098"]
[BlackElo "2040"]
[WhiteTeam "PAR"]
[BlackTeam "ROU"]
[WhiteClock "0:01:04"]
[BlackClock "0:00:58"]

1. e4 {[%clk 0:02:31]}  c5 {[%clk 0:02:57]} 2. b3 {[%clk 0:02:30]}  Nc6 {[%clk 0:02:46]} 3. Bb2 {[%clk 0:02:30]}  e5 {[%clk 0:02:46]} 4. Bc4 {[%clk 0:02:29]}  d6 {[%clk 0:02:44]} 5. Nc3 {[%clk 0:02:29]}  Nf6 {[%clk 0:02:42]} 6. Nge2 {[%clk 0:02:29]}  Be7 {[%clk 0:02:40]} 7. O-O {[%clk 0:02:29]}  O-O {[%clk 0:02:39]} 8. f4 {[%clk 0:02:30]}  Bg4 {[%clk 0:02:03]} 9. h3 {[%clk 0:02:16]}  Bxe2 {[%clk 0:02:04]} 10. Qxe2 {[%clk 0:02:17]}  Nd4 {[%clk 0:02:04]} 11. Qd3 {[%clk 0:02:17]}  exf4 {[%clk 0:02:02]} 12. Rxf4 {[%clk 0:02:15]}  Nd7 {[%clk 0:02:02]} 13. Nd5 {[%clk 0:02:07]}  Ne5 {[%clk 0:02:01]} 14. Qg3 {[%clk 0:02:07]}  Bg5 {[%clk 0:01:27]} 15. Rf2 {[%clk 0:02:05]}  Bh4 {[%clk 0:01:25]} 16. Qe3 {[%clk 0:01:59]}  Nxc2 {[%clk 0:01:20]} 17. Qc3 {[%clk 0:01:53]}  Bxf2+ {[%clk 0:01:18]} 18. Kxf2 {[%clk 0:01:53]}  Nxa1 {[%clk 0:01:19]} 19. Bxa1 {[%clk 0:01:54]}  Qh4+ {[%clk 0:01:17]} 20. Kg1 {[%clk 0:01:43]}  Qxe4 {[%clk 0:01:09]} 21. Qg3 {[%clk 0:01:43]}  Qb1+ {[%clk 0:01:00]} 22. Bf1 {[%clk 0:01:07]}  Qxa1 {[%clk 0:00:58]} 23. Nf6+ {[%clk 0:01:07]}  Kh8 {[%clk 0:00:59]} 24. Qh4 {[%clk 0:01:04]}  Nf3+ {[%clk 0:00:58]} 0-1

[Event "December 19 Early 2023"]
[Site "https://www.chess.com"]
[Date "2023.12.19"]
[Round "9"]
[White "Souleidis, Georgios"]
[Black "Spichkin, Alexander"]
[Result "0-1"]
[Board "91"]
[TimeControl "180+1"]
[WhiteFideId "4206827"]
[BlackFideId "4144074"]
[WhiteElo "2401"]
[BlackElo "1955"]
[WhiteTeam "GRE"]
[BlackTeam "RUS"]
[WhiteClock "0:00:12"]
[BlackClock "0:01:44"]

1. e4 {[%clk 0:03:00]}  e5 {[%clk 0:02:59]} 2. Nf3 {[%clk 0:03:01]}  d5 {[%clk 0:02:59]} 3. Nxe5 {[%clk 0:02:59]}  Bd6 {[%clk 0:02:58]} 4. d4 {[%clk 0:03:00]}  dxe4 {[%clk 0:02:58]} 5. Bc4 {[%clk 0:03:00]}  Bxe5 {[%clk 0:02:58]} 6. Qh5 {[%clk 0:03:00]}  Qe7 {[%clk 0:02:58]} 7. Qxe5 {[%clk 0:02:59]}  Qxe5 {[%clk 0:02:59]} 8. dxe5 {[%clk 0:03:00]}  Nc6 {[%clk 0:02:59]} 9. Nc3 {[%clk 0:02:59]}  Bf5 {[%clk 0:02:58]} 10. Bf4 {[%clk 0:02:54]}  Nge7 {[%clk 0:02:48]} 11. O-O-O {[%clk 0:02:46]}  Ng6 {[%clk 0:02:47]} 12. Bg3 {[%clk 0:02:46]}  Ngxe5 {[%clk 0:02:47]} 13. Bd5 {[%clk 0:02:43]}  O-O-O {[%clk 0:02:47]} 14. Bxe4 {[%clk 0:02:27]}  Bxe4 {[%clk 0:02:45]} 15. Nxe4 {[%clk 0:02:28]}  f6 {[%clk 0:02:41]} 16. Nc5 {[%clk 0:02:25]}  Rxd1+ {[%clk 0:02:38]} 17. Rxd1 {[%clk 0:02:25]}  Re8 {[%clk 0:02:38]} 18. h3 {[%clk 0:02:25]}  b6 {[%clk 0:02:34]} 19. Nb3 {[%clk 0:02:00]}  Nc4 {[%clk 0:02:28]} 20. a3 {[%clk 0:01:53]}  Re2 {[%clk 0:02:26]} 21. Kb1 {[%clk 0:01:16]}  a5 {[%clk 0:02:24]} 22. Nd4 {[%clk 0:01:04]}  Nxd4 {[%clk 0:02:15]} 23. Rxd4 {[%clk 0:01:05]}  Nd2+ {[%clk 0:02:15]} 24. Kc1 {[%clk 0:00:55]}  Ne4 {[%clk 0:02:08]} 25. Rd3 {[%clk 0:00:27]}  Nxf2 {[%clk 0:02:00]} 26. Bxf2 {[%clk 0:00:28]}  Rxf2 {[%clk 0:02:00]} 27. Rg3 {[%clk 0:00:29]}  g5 {[%clk 0:02:00]} 28. a4 {[%clk 0:00:29]}  h5 {[%clk 0:01:57]} 29. b3 {[%clk 0:00:28]}  h4 {[%clk 0:01:55]} 30. Rg4 {[%clk 0:00:28]}  Kd7 {[%clk 0:01:54]} 31. Kb2 {[%clk 0:00:22]}  Ke6 {[%clk 0:01:55]} 32. Kc3 {[%clk 0:00:18]}  Ke5 {[%clk 0:01:47]} 33. g3 {[%clk 0:00:12]}  Rf3+ {[%clk 0:01:44]} 34. Kc4 {[%clk 0:00:12]}  Rxg3 {[%clk 0:01:44]} 0-1

[Event "December 19 Early 2023"]
[Site "https://www.chess.com"]
[Date "2023.12.19"]
[Round "9"]
[White "Deng, Henry"]
[Black "Mizzi, Jack"]
[Result "1-0"]
[Board "92"]
[TimeControl "180+1"]
[WhiteFideId "30965454"]
[BlackFideId "5602521"]
[WhiteElo "2574"]
[BlackElo "2127"]
[WhiteTeam "USA"]
[BlackTeam "MLT"]
[WhiteClock "0:00:29"]
[BlackClock "0:00:00"]

1. e4 {[%clk 0:03:00]}  c6 {[%clk 0:03:00]} 2. d4 {[%clk 0:03:00]}  d5 {[%clk 0:02:58]} 3. Nd2 {[%clk 0:02:59]}  dxe4 {[%clk 0:02:58]} 4. Nxe4 {[%clk 0:03:00]}  Bf5 {[%clk 0:02:58]} 5. Ng3 {[%clk 0:03:00]}  Bg6 {[%clk 0:02:57]} 6. h4 {[%clk 0:03:00]}  h6 {[%clk 0:02:58]} 7. Nf3 {[%clk 0:03:01]}  Nd7 {[%clk 0:02:57]} 8. h5 {[%clk 0:03:01]}  Bh7 {[%clk 0:02:57]} 9. Bd3 {[%clk 0:03:01]}  Bxd3 {[%clk 0:02:56]} 10. Qxd3 {[%clk 0:03:02]}  Ngf6 {[%clk 0:02:57]} 11. Bd2 {[%clk 0:02:59]}  e6 {[%clk 0:02:57]} 12. O-O-O {[%clk 0:02:56]}  Qb6 {[%clk 0:02:58]} 13. Ne4 {[%clk 0:02:43]}  Nxe4 {[%clk 0:02:56]} 14. Qxe4 {[%clk 0:02:44]}  Nf6 {[%clk 0:02:53]} 15. Qd3 {[%clk 0:02:39]}  Be7 {[%clk 0:02:49]} 16. c4 {[%clk 0:02:28]}  a5 {[%clk 0:02:45]} 17. Be3 {[%clk 0:02:15]}  Qa6 {[%clk 0:02:35]} 18. Ne5 {[%clk 0:02:10]}  b5 {[%clk 0:02:26]} 19. Kb1 {[%clk 0:01:59]}  Rd8 {[%clk 0:02:19]} 20. Rc1 {[%clk 0:01:50]}  b4 {[%clk 0:02:18]} 21. Qe2 {[%clk 0:01:40]}  c5 {[%clk 0:01:53]} 22. dxc5 {[%clk 0:01:36]}  O-O {[%clk 0:01:49]} 23. Qf3 {[%clk 0:01:19]}  Rc8 {[%clk 0:01:31]} 24. g4 {[%clk 0:01:14]}  Nh7 {[%clk 0:01:16]} 25. c6 {[%clk 0:00:56]}  Bg5 {[%clk 0:00:47]} 26. Rhd1 {[%clk 0:00:49]}  a4 {[%clk 0:00:20]} 27. Rd7 {[%clk 0:00:38]}  Nf6 {[%clk 0:00:20]} 28. Ra7 {[%clk 0:00:36]}  Qxa7 {[%clk 0:00:09]} 29. Bxa7 {[%clk 0:00:35]}  Bxc1 {[%clk 0:00:10]} 30. Kxc1 {[%clk 0:00:36]}  Nh7 {[%clk 0:00:08]} 31. Be3 {[%clk 0:00:34]}  Ng5 {[%clk 0:00:05]} 32. Bxg5 {[%clk 0:00:34]}  hxg5 {[%clk 0:00:06]} 33. Qe3 {[%clk 0:00:33]}  f6 {[%clk 0:00:06]} 34. Nd7 {[%clk 0:00:31]}  Rf7 {[%clk 0:00:05]} 35. Qxe6 {[%clk 0:00:31]}  b3 {[%clk 0:00:03]} 36. axb3 {[%clk 0:00:30]}  axb3 {[%clk 0:00:00]} 37. c7 {[%clk 0:00:29]} 1-0

[Event "December 19 Early 2023"]
[Site "https://www.chess.com"]
[Date "2023.12.19"]
[Round "9"]
[White "Iljin, Timofey"]
[Black "Mesquita, Eduardo Barbosa"]
[Result "1-0"]
[Board "95"]
[TimeControl "180+1"]
[WhiteFideId "14110180"]
[BlackFideId "22757163"]
[WhiteElo "2380"]
[BlackElo "1953"]
[WhiteTeam "UKR"]
[BlackTeam "BRA"]
[WhiteClock "0:00:59"]
[BlackClock "0:02:06"]

1. e4 {[%clk 0:02:49]}  c5 {[%clk 0:03:00]} 2. c3 {[%clk 0:02:48]}  Nf6 {[%clk 0:03:00]} 3. e5 {[%clk 0:02:49]}  Nd5 {[%clk 0:03:00]} 4. Nf3 {[%clk 0:02:49]}  e6 {[%clk 0:03:00]} 5. d4 {[%clk 0:02:50]}  cxd4 {[%clk 0:03:01]} 6. cxd4 {[%clk 0:02:50]}  d6 {[%clk 0:03:02]} 7. Bc4 {[%clk 0:02:51]}  Nc6 {[%clk 0:03:01]} 8. Qe2 {[%clk 0:02:51]}  Be7 {[%clk 0:03:02]} 9. O-O {[%clk 0:02:51]}  O-O {[%clk 0:03:02]} 10. Rd1 {[%clk 0:02:46]}  Re8 {[%clk 0:03:01]} 11. a3 {[%clk 0:02:44]}  a6 {[%clk 0:03:01]} 12. Bd3 {[%clk 0:02:43]}  b5 {[%clk 0:02:59]} 13. Nc3 {[%clk 0:02:39]}  Bb7 {[%clk 0:02:58]} 14. Nxd5 {[%clk 0:02:32]}  exd5 {[%clk 0:02:59]} 15. Bb1 {[%clk 0:02:27]}  dxe5 {[%clk 0:02:58]} 16. dxe5 {[%clk 0:02:26]}  d4 {[%clk 0:02:58]} 17. Qd3 {[%clk 0:02:15]}  g6 {[%clk 0:02:58]} 18. Ba2 {[%clk 0:02:15]}  Bf8 {[%clk 0:02:42]} 19. Bg5 {[%clk 0:02:00]}  Be7 {[%clk 0:02:43]} 20. Bh6 {[%clk 0:01:56]}  Qd7 {[%clk 0:02:39]} 21. Re1 {[%clk 0:01:25]}  Bc5 {[%clk 0:02:32]} 22. b4 {[%clk 0:01:14]}  Bxb4 {[%clk 0:02:15]} 23. axb4 {[%clk 0:01:09]}  Nxb4 {[%clk 0:02:15]} 24. Qxd4 {[%clk 0:01:06]}  Qxd4 {[%clk 0:02:11]} 25. Nxd4 {[%clk 0:01:07]}  Nd3 {[%clk 0:02:09]} 26. Re3 {[%clk 0:01:04]}  Nxe5 {[%clk 0:02:08]} 27. Rae1 {[%clk 0:01:03]}  Rad8 {[%clk 0:02:08]} 28. Rxe5 {[%clk 0:01:02]}  Rxe5 {[%clk 0:02:06]} 29. Rxe5 {[%clk 0:00:59]}  Kh8 {[%clk 0:02:06]} 1-0